bitfinex-derivatives/quotes_SOLF0:USTF0_20260218
["timestamp","ask_amount","ask_price","bid_price","bid_amount"]
[1771401808027,10.5576,85.294,85.255,2.40743896]
[1771401808325,1.98086605,85.29,85.254,0.07850319]
[1771401809535,3.97337731,85.293,85.254,0.07850319]
[1771401809930,1.98086605,85.29,85.254,0.07850319]
[1771401810936,3.97337731,85.289,85.254,0.07850319]
[1771401812537,14.53167731,85.288,85.254,0.07850319]
[1771401813042,14.53167731,85.288,85.247,2.29963637]
[1771401813534,14.53167731,85.288,85.262,0.08434853]
[1771401814236,3.97337731,85.287,85.262,0.08434853]
[1771401823139,10.5572,85.297,85.262,2.22406105]
[1771401823640,3.97337731,85.296,85.262,2.22406105]
[1771401825840,10.5572,85.297,85.262,2.22406105]
[1771401826041,3.69917822,85.296,85.262,2.22406105]
[1771401828252,10.5577,85.293,85.262,2.22406105]
[1771401828653,3.69917822,85.296,85.262,2.22406105]
[1771401836552,3.95415933,85.328,85.28,1.98054739]
[1771401836855,21.0944,85.378,85.262,0.08434853]
[1771401836856,3.95415933,85.309,85.265,73.86]
[1771401837557,3.95415933,85.309,85.278,0.0799975]
[1771401838255,3.95415933,85.309,85.278,2.16803623]
[1771401838655,5.93470672,85.32,85.278,2.16803623]
[1771401838850,3.95415933,85.32,85.281,2.08803873]
[1771401840857,3.95415933,85.319,85.281,2.08803873]
[1771401841761,3.95415933,85.319,85.291,0.07497541]
[1771401843061,3.95415933,85.309,85.26,1.98054739]
[1771401843257,3.95415933,85.309,85.261,1.8308686]
[1771401843954,3.95415933,85.309,85.27,1.98054739]
[1771401844155,3.95415933,85.309,85.271,1.72774888]
[1771401845159,3.95415933,85.374,85.281,1.72774888]
[1771401845361,3.95415933,85.359,85.311,1.72774888]
[1771401845863,0.07513939,85.344,85.311,1.72774888]
[1771401849060,3.95415933,85.359,85.321,1.51868552]
[1771401849456,5.93470672,85.37,85.321,1.51868552]
[1771401849955,3.95415933,85.369,85.321,1.51868552]
[1771401850566,3.95415933,85.369,85.336,0.0745852]
[1771401851660,3.95415933,85.381,85.336,1.59630445]
[1771401851966,10.5458,85.389,85.341,1.53039464]
[1771401852461,3.95415933,85.379,85.33,1.98054739]
[1771401852668,3.95415933,85.379,85.356,0.00930395]
[1771401853060,3.95415933,85.379,85.33,3.51094203]
[1771401853265,3.95415933,85.379,85.331,1.53039464]
[1771401853467,10.546,85.388,85.341,1.53039464]
[1771401854166,10.5463,85.385,85.341,1.53039464]
[1771401854572,10.5463,85.385,85.287,21.68194364]
[1771401854573,3.95415933,85.448,85.381,1.62927709]
[1771401854762,3.66933599,85.489,85.44,1.98054739]
[1771401854956,3.66933599,85.489,85.45,1.98054739]
[1771401855966,3.66933599,85.489,85.461,0.08304161]
[1771401856258,3.66933599,85.489,85.44,1.98054739]
[1771401856966,3.66933599,85.479,85.43,1.98054739]
[1771401857964,0.07417643,85.463,85.42,12.52234739]
[1771401858156,0.07417643,85.463,85.432,10.5404]
[1771401858358,3.66933599,85.479,85.446,0.08373646]
[1771401860063,3.66933599,85.469,85.446,0.08373646]
[1771401861067,1.98054739,85.46,85.421,10.5418]
[1771401861271,3.66933599,85.459,85.408,10.5433]
[1771401861462,5.64988338,85.45,85.408,10.5433]
[1771401862059,1.98054739,85.47,85.421,3.93340335]
[1771401863866,1.98054739,85.47,85.437,0.07413886]
[1771401864774,5.64988338,85.47,85.437,0.07413886]
[1771401865871,3.66933599,85.469,85.437,0.07413886]
[1771401866072,1.98054739,85.46,85.437,0.07413886]
[1771401866273,3.66933599,85.469,85.437,0.07413886]
[1771401867372,1.98054739,85.46,85.437,0.07413886]
[1771401867771,5.64988338,85.45,85.407,3.93340335]
[1771401868374,1.98054739,85.45,85.41,1.98054739]
[1771401868582,3.66933599,85.463,85.42,5.91395074]
[1771401868874,3.66933599,85.463,85.421,3.93340335]
[1771401869473,1.98054739,85.47,85.421,3.93340335]
[1771401869675,0.07791045,85.451,85.421,3.93340335]
[1771401870983,3.66933599,85.449,85.392,3.93340335]
[1771401871176,1.98054739,85.43,85.392,3.93340335]
[1771401871682,1.98054739,85.42,85.377,3.93340335]
[1771401873182,0.07907248,85.407,85.377,3.93340335]
[1771401873384,0.07907248,85.407,85.368,73.74]
[1771401873585,0.07907248,85.407,85.362,3.93340335]
[1771401873781,1.98054739,85.4,85.35,1.98054739]
[1771401873981,3.66933599,85.4,85.352,3.93340335]
[1771401874284,3.66933599,85.4,85.36,1.98054739]
[1771401875681,0.07935317,85.389,85.36,1.98054739]
[1771401875872,0.07935317,85.389,85.36,1.97489073]
[1771401883684,0.07935317,85.389,85.344,10.5513]
[1771401883685,3.74868916,85.389,85.344,3.93340335]
[1771401883880,3.66933599,85.379,85.33,5.90829408]
[1771401885289,0.07848292,85.363,85.33,3.93340335]
[1771401885592,0.07848292,85.363,85.33,5.90829408]
[1771401886591,0.07848292,85.363,85.331,3.78593862]
[1771401888295,3.89027957,85.362,85.322,73.74]
[1771401888486,1.97489073,85.36,85.322,73.74]
[1771401888888,0.07848292,85.363,85.323,3.78593862]
[1771401890096,3.96876249,85.363,85.323,3.78593862]
[1771401891396,3.96876249,85.363,85.32,1.97489073]
[1771401892792,3.96876249,85.363,85.319,10.5544]
[1771401892999,3.89027957,85.359,85.316,73.76]
[1771401893194,3.89027957,85.359,85.32,1.97489073]
[1771401895790,3.64971625,85.349,85.301,73.78]
[1771401895992,3.64971625,85.349,85.302,3.77547803]
[1771401896399,3.64971625,85.349,85.31,1.97489073]
[1771401896796,0.07431973,85.334,85.31,1.97489073]
[1771401897599,3.64971625,85.362,85.32,1.97489073]
[1771401897797,3.64971625,85.362,85.321,3.77547803]
[1771401899100,3.64971625,85.362,85.333,0.08329923]
[1771401900902,1.97489073,85.36,85.333,0.08329923]
[1771401901101,3.72953306,85.356,85.333,0.0091228]
[1771401902106,0.07981681,85.356,85.333,3.78460083]
[1771401902306,3.64971625,85.382,85.34,1.97489073]
[1771401902697,3.64971625,85.382,85.341,3.77547803]
[1771401903100,3.64971625,85.379,85.33,1.97489073]
[1771401903805,3.64971625,85.379,85.346,0.08642978]
[1771401904208,3.64971625,85.359,85.31,1.97489073]
[1771401904504,5.62460698,85.35,85.306,73.8]
[1771401904707,3.64971625,85.349,85.306,73.8]
[1771401904906,1.97489073,85.34,85.306,73.8]
[1771401905102,3.64971625,85.349,85.306,73.8]
[1771401905297,3.64971625,85.349,85.31,1.97489073]
[1771401905503,0.07585061,85.332,85.32,1.97489073]
[1771401905704,3.64971625,85.369,85.32,1.97489073]
[1771401906199,3.64971625,85.369,85.321,0.09005564]
[1771401908300,3.64971625,85.369,85.326,3.77547803]
[1771401909409,3.64971625,85.369,85.339,0.08483693]
[1771401912008,3.64971625,85.382,85.34,3.77547803]
[1771401912204,1.97489073,85.38,85.34,3.77547803]
[1771401912717,3.64971625,85.379,85.34,3.77547803]
[1771401912910,3.20514288,85.379,85.351,0.07623254]
[1771401914510,1.97489073,85.39,85.351,0.07623254]
[1771401915110,3.7165679,85.389,85.343,10.5513]
[1771401915412,3.7165679,85.389,85.362,0.07592211]
[1771401915609,21.0805,85.434,85.362,0.07592211]
[1771401915610,3.7165679,85.411,85.37,1.97489073]
[1771401915810,3.7165679,85.411,85.37,5.89780485]
[1771401916616,3.7165679,85.411,85.382,0.08019108]
[1771401917112,3.7165679,85.449,85.401,3.92291412]
[1771401917318,3.7165679,85.449,85.41,1.97489073]
[1771401918014,3.7165679,85.449,85.421,0.08976646]
[1771401918614,3.7165679,85.429,85.38,1.97489073]
[1771401918818,3.7165679,85.419,85.309,3.92291412]
[1771401919010,1.97489073,85.41,85.37,1.97489073]
[1771401919211,1.97489073,85.41,85.36,5.89780485]
[1771401919411,3.7165679,85.419,85.37,1.97489073]
[1771401919919,0.0811273,85.403,85.361,3.92291412]
[1771401920620,0.0811273,85.403,85.37,1.97489073]
[1771401921521,0.0811273,85.403,85.361,3.92291412]
[1771401924718,0.0811273,85.403,85.363,3.92291412]
[1771401925018,0.0811273,85.403,85.35,5.87746364]
[1771401925019,3.7165679,85.442,85.391,3.92291412]
[1771401925924,3.7165679,85.442,85.392,3.92291412]
[1771401926223,5.87746364,85.46,85.392,3.92291412]
[1771401926224,3.7165679,85.457,85.392,3.92291412]
[1771401926424,3.7165679,85.457,85.408,0.07579379]
[1771401927825,3.7165679,85.454,85.408,0.07579379]
[1771401928317,3.7165679,85.454,85.392,3.92291412]
[1771401928517,3.7165679,85.454,85.4,3.92291412]
[1771401928722,3.7165679,85.454,85.422,0.08680089]
[1771401932118,3.7165679,85.454,85.382,3.92291412]
[1771401932321,163.8094,85.513,85.382,3.92291412]
[1771401932322,3.7165679,85.446,85.382,3.92291412]
[1771401933932,0.07483093,85.423,85.386,3.92291412]
[1771401934834,0.07483093,85.423,85.387,10.546]
[1771401935032,0.07483093,85.423,85.388,3.92291412]
[1771401937027,3.7165679,85.422,85.37,3.92291412]
[1771401937226,0.07483093,85.423,85.37,3.92291412]
[1771401937620,3.7165679,85.436,85.37,3.92291412]
[1771401938021,3.7165679,85.436,85.371,3.92291412]
[1771401938428,3.7165679,85.436,85.394,0.07695536]
[1771401942023,3.7165679,85.429,85.394,0.07695536]
[1771401942619,3.7165679,85.429,85.389,10.5457]
[1771401943428,3.7165679,85.429,85.4,0.08136747]
[1771401944232,3.7165679,85.443,85.401,3.92291412]
[1771401944431,3.7165679,85.457,85.402,3.92291412]
[1771401944737,3.7165679,85.457,85.413,0.07402918]
[1771401944738,1.97428555,85.45,85.413,0.07402918]
[1771401945233,1.97428555,85.44,85.413,0.07402918]
[1771401946027,5.61831188,85.45,85.413,0.07402918]
[1771401946432,1.97428555,85.45,85.413,4.04653782]
[1771401946730,1.97428555,85.46,85.413,3.97250864]
[1771401946926,5.61831188,85.46,85.423,0.08593996]
[1771401947124,1.97428555,85.45,85.423,0.08593996]
[1771401948729,1.97428555,85.44,85.423,0.08593996]
[1771401949238,1.97428555,85.44,85.399,3.97250864]
[1771401949239,3.64402633,85.439,85.399,3.97250864]
[1771401949733,3.64402633,85.429,85.385,3.97250864]
[1771401950734,0.08325884,85.416,85.385,3.97250864]
[1771401952931,1.97428555,85.41,85.371,3.97250864]
[1771401953635,3.64402633,85.415,85.371,3.97250864]
[1771401953936,0.07495013,85.399,85.371,3.97250864]
[1771401961040,3.60113533,85.437,85.391,3.68914088]
[1771401961536,3.60113533,85.437,85.4,5.66342643]
[1771401962240,3.60113533,85.437,85.41,0.07421904]
[1771401962642,5.57542088,85.45,85.41,0.07421904]
[1771401963239,3.60113533,85.449,85.41,0.07421904]
[1771401964438,1.97428555,85.44,85.41,0.07421904]
[1771401964637,5.57542088,85.44,85.41,0.07421904]
[1771401964940,3.60113533,85.439,85.41,0.07421904]
[1771401966936,1.97428555,85.43,85.41,0.07421904]
[1771401967143,3.60113533,85.429,85.394,10.5451]
[1771401967843,3.60113533,85.429,85.386,14.23524088]
[1771401968645,3.60113533,85.429,85.377,10.5471]
[1771401969239,3.60113533,85.429,85.373,3.68914088]
[1771401969638,0.08539295,85.412,85.373,3.68914088]
[1771401972543,0.08539295,85.412,85.366,73.74]
[1771401972544,3.60113533,85.409,85.366,73.74]
[1771401977344,3.60113533,85.409,85.367,10.5484]
[1771401978847,0.08539295,85.412,85.368,3.71841636]
[1771401979047,3.695713,85.44,85.401,3.71841636]
[1771401979938,3.695713,85.456,85.41,5.69270191]
[1771401981151,3.695713,85.456,85.41,3.71841636]
[1771401981352,3.695713,85.456,85.424,0.0788192]
[1771401982043,1.97428555,85.45,85.424,0.0788192]
[1771401983949,3.695713,85.456,85.424,0.0788192]
[1771401986950,31.9891998,85.507,85.424,0.0788192]
[1771401986951,3.695713,85.469,85.424,3.79723556]
[1771401987454,1.97428555,85.46,85.424,3.71841636]
[1771401987853,1.97428555,85.46,85.438,0.08075151]
[1771401988456,3.695713,85.459,85.412,3.71841636]
[1771401988653,3.695713,85.458,85.412,3.71841636]
[1771401988854,3.78551411,85.458,85.412,3.71841636]
[1771401989957,10.5382,85.45,85.412,3.71841636]
[1771401990354,3.78551411,85.458,85.412,3.71841636]
[1771401990557,3.695713,85.458,85.412,3.71841636]
[1771401990858,0.08562808,85.444,85.412,3.71841636]
[1771401991855,1.97428555,85.44,85.398,3.71841636]
[1771401992061,3.695713,85.439,85.398,3.71841636]
[1771401992764,0.0797851,85.427,85.398,3.71841636]
[1771401993868,3.7754981,85.427,85.382,3.71841636]
[1771401994366,3.7754981,85.427,85.39,1.97428555]
[1771401997874,3.7754981,85.427,85.39,1.97386631]
[1771401998878,3.7754981,85.427,85.39,5.69228267]
[1771402002979,3.7754981,85.427,85.39,3.71841636]
[1771402003783,3.695713,85.409,85.372,3.71841636]
[1771402004780,0.0806155,85.399,85.372,3.71841636]
[1771402006681,0.0806155,85.399,85.374,10.5475]
[1771402006883,0.0806155,85.399,85.372,3.71841636]
[1771402013690,3.96351669,85.389,85.34,1.97386631]
[1771402013896,3.96351669,85.389,85.341,3.94156185]
[1771402014089,0.0806155,85.399,85.351,3.94156185]
[1771402014290,3.96351669,85.402,85.361,3.94156185]
[1771402014788,0.08027677,85.384,85.361,3.94156185]
[1771402018498,1.97386631,85.41,85.362,3.96173681]
[1771402018800,1.97386631,85.41,85.365,3.96173681]
[1771402023206,1.97386631,85.4,85.365,3.96173681]
[1771402023394,1.97386631,85.4,85.364,0.08428745]
[1771402023395,3.61574525,85.399,85.364,0.08428745]
[1771402023801,5.58961156,85.39,85.364,0.08428745]
[1771402024304,5.58961156,85.39,85.353,73.76]
[1771402024808,5.58961156,85.39,85.368,0.08343269]
[1771402025105,3.61574525,85.39,85.368,0.08343269]
[1771402031313,51.15875321,85.557,85.368,0.08343269]
[1771402031314,3.61574525,85.42,85.38,1.97386631]
[1771402031511,3.61574525,85.42,85.371,3.96173681]
[1771402032003,3.61574525,85.389,85.354,3.96173681]
[1771402032503,0.08475549,85.38,85.354,3.96173681]
[1771402032708,0.08475549,85.38,85.343,3.96173681]
[1771402037309,3.97208495,85.379,85.343,3.96173681]
[1771402056736,3.97208495,85.379,85.34,1.97386631]
[1771402056737,3.97208495,85.379,85.33,1.97386631]
[1771402057628,0.08180967,85.363,85.33,1.97386631]
[1771402058136,0.08180967,85.363,85.33,5.60187788]
[1771402058539,0.08180967,85.363,85.331,3.62801157]
[1771402058736,0.08180967,85.363,85.332,3.62801157]
[1771402058936,0.08180967,85.363,85.34,5.60187788]
[1771402059240,0.08180967,85.363,85.341,3.62801157]
[1771402061942,3.97208495,85.38,85.341,3.62801157]
[1771402062347,3.97208495,85.38,85.343,0.07827149]
[1771402062737,3.97208495,85.401,85.343,3.70628306]
[1771402062935,3.97208495,85.399,85.351,3.62801157]
[1771402063743,3.97208495,85.399,85.366,0.08243229]
[1771402066146,3.83065692,85.41,85.366,3.7495353]
[1771402067546,3.83065692,85.409,85.366,3.7495353]
[1771402074254,1.97605298,85.42,85.366,3.7495353]
[1771402074255,3.83065692,85.42,85.371,3.66710301]
[1771402075359,3.60374857,85.417,85.387,0.08512716]
[1771402075755,73.78,85.449,85.387,0.08512716]
[1771402075756,3.60374857,85.435,85.388,3.70063834]
[1771402075962,3.60374857,85.435,85.391,3.70063834]
[1771402076656,3.60374857,85.435,85.404,0.07602087]
[1771402079857,1.97605298,85.43,85.404,0.07602087]
[1771402083865,3.60374857,85.419,85.37,5.67669132]
[1771402084359,3.60374857,85.419,85.371,3.70063834]
[1771402085362,0.08221051,85.404,85.371,3.70063834]
[1771402086263,0.08221051,85.404,85.372,10.5477]
[1771402086466,0.08221051,85.404,85.373,3.70063834]
[1771402091564,3.60374857,85.419,85.373,3.70063834]
[1771402091763,3.60374857,85.419,85.381,3.70063834]
[1771402095969,5.9363703,85.43,85.384,3.87323676]
[1771402096468,3.96031732,85.429,85.384,3.87323676]
[1771402096874,3.96031732,85.429,85.398,0.08941605]
[1771402119298,3.96031732,85.409,85.362,3.87323676]
[1771402119487,3.96031732,85.399,85.351,3.87323676]
[1771402119693,3.96031732,85.389,85.351,3.87323676]
[1771402120894,0.08982522,85.379,85.351,3.87323676]
[1771402124500,3.96031732,85.399,85.361,3.87323676]
[1771402125903,3.96031732,85.399,85.371,0.0872971]
[1771402126302,1.97567369,85.41,85.371,3.75715055]
[1771402126500,3.90958409,85.409,85.371,3.75715055]
[1771402127198,3.90958409,85.399,85.371,0.0872971]
[1771402127704,3.90958409,85.399,85.355,3.66985345]
[1771402128103,3.90958409,85.399,85.376,0.07766542]
[1771402130703,3.90958409,85.389,85.346,3.66985345]
[1771402131804,3.90958409,85.389,85.348,10.5507]
[1771402132106,0.08689641,85.376,85.348,10.5507]
[1771402132503,0.08689641,85.376,85.351,3.66985345]
[1771402132801,3.90958409,85.409,85.361,3.66985345]
[1771402134009,3.90958409,85.409,85.376,0.08698001]
[1771402135309,1.97567369,85.4,85.376,0.08698001]
[1771402135810,1.97567369,85.4,85.361,3.66985345]
[1771402136011,5.59436227,85.4,85.361,3.66985345]
[1771402136305,5.59436227,85.4,85.379,0.09004046]
[1771402137701,3.61868858,85.4,85.379,0.09004046]
[1771402148413,3.61868858,85.41,85.379,3.82477126]
[1771402149207,5.59436227,85.41,85.379,0.09004046]
[1771402149408,3.61868858,85.409,85.379,0.09004046]
[1771402150611,3.61868858,85.399,85.358,3.7347308]
[1771402150920,3.61868858,85.389,85.349,10.5506]
[1771402151611,3.61868858,85.389,85.349,14.2853308]
[1771402152112,0.07502378,85.378,85.349,14.2853308]
[1771402154413,0.07502378,85.378,85.35,1.97567369]
[1771402155015,0.07502378,85.378,85.35,5.72245778]
[1771402155218,0.07502378,85.378,85.351,3.74678409]
[1771402165327,3.8599164,85.378,85.34,73.76]
[1771402165524,3.8599164,85.378,85.341,3.74678409]
[1771402169027,3.8599164,85.378,85.34,75.73567369]
[1771402169028,3.8599164,85.378,85.344,3.74678409]
[1771402175425,3.8599164,85.378,85.346,3.74678409]
[1771402175922,0.07502378,85.378,85.346,3.74678409]
[1771402176128,3.78489262,85.399,85.352,3.74678409]
[1771402176428,3.78489262,85.399,85.354,3.74678409]
[1771402181328,3.78489262,85.399,85.356,3.74678409]
[1771402181531,3.78489262,85.398,85.356,3.74678409]
[1771402191750,3.78489262,85.398,85.361,3.61568967]
[1771402192756,3.78489262,85.398,85.371,0.07887503]
[1771402200961,3.8230402,85.419,85.372,3.87532674]
[1771402201660,3.8230402,85.409,85.36,73.76]
[1771402202164,3.8230402,85.392,85.36,73.76]
[1771402202857,3.8230402,85.392,85.358,3.87532674]
[1771402203059,3.8230402,85.392,85.359,3.87532674]
[1771402204962,3.8230402,85.392,85.357,73.76]
[1771402206860,3.8230402,85.379,85.341,10.5516]
[1771402207564,3.8230402,85.379,85.334,73.76]
[1771402207765,0.08903276,85.369,85.335,3.87532674]
[1771402208265,0.08903276,85.369,85.338,3.87532674]
[1771402208866,3.8230402,85.379,85.338,3.87532674]
[1771402209262,0.07491417,85.362,85.338,3.87532674]
[1771402209566,0.07491417,85.362,85.336,73.76]
[1771402209567,5.79841654,85.39,85.351,3.87532674]
[1771402209769,3.8230402,85.39,85.351,3.87532674]
[1771402210670,3.8230402,85.39,85.352,3.87532674]
[1771402210870,3.8230402,85.39,85.362,0.07385402]
[1771402211669,49.68518998,85.459,85.362,0.07385402]
[1771402211670,1.97537634,85.41,85.371,3.87532674]
[1771402211969,3.8230402,85.419,85.371,3.87532674]
[1771402212670,3.8230402,85.419,85.386,0.07519299]
[1771402224575,3.8230402,85.419,85.371,3.74775855]
[1771402224785,3.94819229,85.41,85.371,3.74775855]
[1771402237392,3.94819229,85.41,85.373,3.81153541]
[1771402237790,3.94819229,85.41,85.375,3.81153541]
[1771402245089,0.08215251,85.411,85.381,3.67836506]
[1771402245495,3.91203742,85.43,85.381,3.67836506]
[1771402245696,3.91203742,85.43,85.388,3.67836506]
[1771402246985,3.91203742,85.43,85.391,3.67836506]
[1771402247699,3.91203742,85.44,85.4,1.97403006]
[1771402247899,3.91203742,85.44,85.402,3.67836506]
[1771402248193,5.88606748,85.44,85.402,3.67836506]
[1771402248396,3.91203742,85.439,85.402,3.67836506]
[1771402248591,3.91203742,85.439,85.412,0.08221808]
[1771402260700,3.77086698,85.45,85.413,3.84546216]
[1771402268711,5.74489704,85.45,85.413,3.84546216]
[1771402268912,3.77086698,85.449,85.413,3.84546216]
[1771402271213,3.77086698,85.449,85.412,0.08221808]
[1771402276116,3.77086698,85.449,85.412,3.93442982]
[1771402276813,3.70996899,85.469,85.421,3.85221174]
[1771402277717,3.70996899,85.468,85.436,0.08294774]
[1771402280328,3.70996899,85.459,85.436,0.08294774]
[1771402284121,3.70996899,85.459,85.419,73.72]
[1771402284327,3.70996899,85.455,85.419,73.72]
[1771402287221,10.5377,85.454,85.419,73.72]
[1771402287422,3.70996899,85.453,85.419,73.72]
[1771402287824,3.70996899,85.453,85.42,3.85221174]
[1771402289129,0.07762901,85.456,85.42,3.85221174]
[1771402289332,0.07762901,85.456,85.421,3.85221174]
[1771402289534,0.07762901,85.456,85.422,3.85221174]
[1771402289735,0.07762901,85.456,85.411,3.85221174]
[1771402289736,3.70996899,85.454,85.411,3.85221174]
[1771402290035,3.70996899,85.454,85.412,73.72]
[1771402290236,3.70996899,85.454,85.412,3.85221174]
[1771402290826,0.07751097,85.442,85.412,3.85221174]
[1771402293426,3.78747996,85.442,85.412,3.85221174]
[1771402293929,14.32667996,85.442,85.412,3.85221174]
[1771402294329,10.61671097,85.442,85.412,3.85221174]
[1771402294535,0.07751097,85.442,85.412,3.85221174]
[1771402297138,3.70996899,85.478,85.431,3.85221174]
[1771402297930,3.70996899,85.476,85.431,3.85221174]
[1771402298328,3.70996899,85.476,85.432,3.85221174]
[1771402298533,3.70996899,85.476,85.446,0.07500782]
[1771402302341,3.70996899,85.487,85.447,3.85221174]
[1771402303440,5.68399905,85.48,85.458,0.08956156]
[1771402303639,3.70996899,85.48,85.458,0.08956156]
[1771402304139,3.70996899,85.48,85.447,3.85221174]
[1771402304343,3.70996899,85.48,85.46,0.07807749]
[1771402304738,3.67825701,85.478,85.442,73.72]
[1771402305040,1.97403006,85.46,85.414,3.85041857]
[1771402305933,1.97403006,85.45,85.414,3.85041857]
[1771402306135,0.07510253,85.446,85.414,3.85041857]
[1771402308341,10.5389,85.445,85.414,3.85041857]
[1771402310049,10.54,85.436,85.414,1.857e-05]
[1771402310638,0.07510253,85.446,85.414,1.857e-05]
[1771402311748,0.07510253,85.446,85.42,1.97297545]
[1771402311944,10.5367,85.463,85.42,1.97297545]
[1771402312152,1.97297545,85.49,85.441,24.30282156]
[1771402312544,10.5351,85.475,85.441,24.30282156]
[1771402313950,10.5351,85.475,85.44,1.97297545]
[1771402313951,10.5351,85.475,85.449,24.38688134]
[1771402314250,1.97297545,85.49,85.449,24.38688134]
[1771402314546,10.5341,85.484,85.449,24.38688134]
[1771402316450,10.5341,85.484,85.451,24.32595281]
[1771402318052,10.533,85.493,85.451,24.32595281]
[1771402318950,10.533,85.493,85.463,0.08693771]
[1771402322257,10.532,85.501,85.464,24.32402705]
[1771402322950,1.97297545,85.49,85.451,73.7]
[1771402323143,1.97297545,85.5,85.474,0.0867144]
[1771402323856,1.97297545,85.5,85.451,73.7]
[1771402324754,10.5336,85.488,85.451,73.7]
[1771402325058,10.5336,85.488,85.452,14.80118715]
[1771402325371,10.5336,85.488,85.462,14.79946443]
[1771402325653,10.5336,85.488,85.462,6.443e-05]
[1771402329560,10.5325,85.497,85.462,6.443e-05]
[1771402331361,1.97297545,85.5,85.462,6.443e-05]
[1771402333465,1.97297545,85.51,85.462,6.443e-05]
[1771402333658,1.97297545,85.5,85.462,6.443e-05]
[1771402334461,1.97297545,85.5,85.472,0.08449091]
[1771402337959,8.66763242,85.538,85.473,7.24909515]
[1771402338265,1.97297545,85.52,85.474,7.24909515]
[1771402338967,1.97297545,85.52,85.488,0.08183045]
[1771402339462,10.5276,85.536,85.488,0.08183045]
[1771402339659,1.97297545,85.52,85.488,0.08183045]
[1771402340058,1.97297545,85.53,85.483,7.24321724]
[1771402340366,1.97297545,85.53,85.496,7.24460657]
[1771402340772,10.5276,85.536,85.496,7.24460657]
[1771402341469,10.5285,85.529,85.496,7.24460657]
[1771402342770,10.5285,85.529,85.504,0.08003504]
[1771402345165,1.97297545,85.55,85.504,7.31388172]
[1771402345371,1.97297545,85.53,85.504,0.08003504]
[1771402345769,1.96245242,85.519,85.46,1.97297545]
[1771402346562,1.96245242,85.519,85.47,1.97297545]
[1771402346767,2.00484553,85.515,85.47,1.97297545]
[1771402347472,0.08316394,85.501,85.47,1.97297545]
[1771402347874,0.08316394,85.501,85.47,5.93974643]
[1771402348071,0.08316394,85.501,85.471,3.96677098]
[1771402348773,10.529,85.525,85.481,3.96677098]
[1771402350074,1.9764653,85.522,85.494,0.08222778]
[1771402351171,2.0463248,85.519,85.471,3.96677098]
[1771402351474,2.00016478,85.516,85.471,3.96677098]
[1771402352873,2.04943349,85.511,85.471,3.96677098]
[1771402353277,1.97297545,85.51,85.461,3.96677098]
[1771402353476,2.08877054,85.509,85.461,3.96677098]
[1771402353871,0.08780888,85.494,85.461,3.96677098]
[1771402356777,2.34138194,85.494,85.45,1.97297545]
[1771402357074,2.34138194,85.494,85.451,3.96677098]
[1771402357277,2.25357306,85.494,85.451,3.96677098]
[1771402357575,1.97297545,85.49,85.451,3.96677098]
[1771402357882,2.3662185,85.481,85.44,3.96677098]
[1771402358068,1.97297545,85.48,85.44,3.96677098]
[1771402358270,2.31372036,85.479,85.44,3.96677098]
[1771402358468,2.31372036,85.479,85.44,5.93974643]
[1771402359469,2.31372036,85.479,85.43,1.97297545]
[1771402359675,2.3506278,85.469,85.429,3.96677098]
[1771402360079,2.3506278,85.469,85.44,1.97297545]
[1771402360276,2.38118779,85.48,85.441,3.96677098]
[1771402360775,1.97297545,85.48,85.441,3.96677098]
[1771402360980,2.47073254,85.479,85.441,3.96677098]
[1771402363487,2.63002389,85.492,85.442,3.96677098]
[1771402363780,2.63002389,85.489,85.442,3.96677098]
[1771402364477,2.63002389,85.489,85.457,0.07973112]
[1771402365276,4.70145765,85.48,85.457,0.07973112]
[1771402365579,2.7284822,85.479,85.442,3.96677098]
[1771402366677,2.76142058,85.469,85.416,4.50714013]
[1771402366878,2.76142058,85.469,85.42,1.97297545]
[1771402367183,2.76142058,85.469,85.421,4.50714013]
[1771402367679,0.08503341,85.453,85.421,4.50714013]
[1771402380388,3.3546745,85.479,85.431,4.67753675]
[1771402380787,1.97243422,85.47,85.431,4.67753675]
[1771402381691,3.38308322,85.489,85.441,4.67753675]
[1771402381890,3.38308322,85.489,85.443,4.67753675]
[1771402382087,5.4139854,85.5,85.451,4.67753675]
[1771402382282,3.46631778,85.489,85.451,4.67753675]
[1771402382486,3.46631778,85.489,85.442,0.07971369]
[1771402382487,1.97243422,85.48,85.442,0.07971369]
[1771402382682,3.46631778,85.479,85.44,4.67753675]
[1771402382887,3.46631778,85.469,85.427,4.67753675]
[1771402383093,1.97243422,85.47,85.452,0.07666224]
[1771402383292,3.46963189,85.477,85.452,0.07666224]
[1771402383492,3.49407629,85.475,85.437,4.67753675]
[1771402383695,0.07979298,85.457,85.437,4.67753675]
[1771402383890,0.07979298,85.457,85.421,4.67753675]
[1771402384097,3.51857447,85.456,85.416,10.5423]
[1771402384489,3.51857447,85.456,85.416,15.21983675]
[1771402385095,3.51857447,85.456,85.417,4.67753675]
[1771402385410,0.07979298,85.457,85.416,4.67753675]
[1771402385411,1.97243422,85.45,85.416,4.67753675]
[1771402386597,5.52910928,85.45,85.416,4.67753675]
[1771402387397,3.5832259,85.439,85.399,4.67753675]